bitfinex-derivatives/quotes_ETHF0:USTF0_20250308
["timestamp","ask_amount","ask_price","bid_price","bid_amount"]
[1741449720128,3.2078,2183.9,2183.3,3.2078]
[1741449721033,3.2078,2183.9,2183.4,0.00687395]
[1741449722330,3.98627783,2183.9,2183.4,0.00687395]
[1741449722628,3.2078,2183.6,2183.4,0.00687395]
[1741449722829,0.6053,2183.5,2183.4,0.00687395]
[1741449723134,1.2274,2183.5,2183.4,0.00687395]
[1741449724238,2.00704833,2183.5,2182.9,21.7]
[1741449724537,3.2078,2183.2,2182.9,21.7]
[1741449724736,0.6427,2183.1,2182.9,21.7]
[1741449727144,0.6427,2183.1,2182.8,0.00687395]
[1741449727338,0.6124,2183.0,2182.8,0.00687395]
[1741449727730,0.6124,2183.0,2182.8,21.70687395]
[1741449728135,0.6427,2183.1,2182.8,21.70687395]
[1741449729739,0.00687395,2183.2,2182.8,21.70687395]
[1741449729938,0.00687395,2183.2,2183.0,3.2078]
[1741449730444,0.00687395,2183.2,2183.1,0.6261]
[1741449734145,0.6537,2183.8,2183.1,4.6261]
[1741449734346,2.04,2183.9,2183.1,4.6261]
[1741449734347,0.6518,2183.9,2183.3,4.12408]
[1741449734543,0.6518,2183.9,2183.3,3.2078]
[1741449734741,0.6518,2183.9,2183.4,21.7]
[1741449734941,0.6518,2183.9,2183.3,3.2078]
[1741449735342,0.00687395,2183.8,2183.3,4.1241]
[1741449735542,0.00687395,2183.8,2183.4,21.7]
[1741449735945,0.00687395,2183.8,2183.5,0.6052]
[1741449736248,0.00687395,2183.8,2183.6,3.2078]
[1741449736547,0.00687395,2183.8,2183.7,1.252]
[1741449739444,0.6416,2184.3,2183.7,1.252]
[1741449739647,0.6416,2184.3,2184.0,3.2078]
[1741449739850,0.6416,2184.3,2184.1,0.6253]
[1741449741343,0.6416,2184.3,2184.2,0.5962]
[1741449741544,0.00687395,2184.4,2184.2,0.5962]
[1741449741749,0.00687395,2184.4,2184.2,1.2402]
[1741449742549,3.2078,2185.0,2184.2,1.2402]
[1741449742550,3.2078,2185.0,2184.3,4.12366]
[1741449742743,0.6382,2185.2,2184.6,3.2078]
[1741449742946,2.6772,2185.2,2184.6,3.2078]
[1741449743253,3.2078,2185.0,2184.3,3.2078]
[1741449743446,0.6269,2184.9,2184.3,3.2078]
[1741449743643,0.00452976,2184.8,2184.4,21.70687395]
[1741449743844,0.64272976,2184.8,2184.4,21.70687395]
[1741449744045,3.2078,2184.7,2184.4,21.70687395]
[1741449744549,3.2078,2184.7,2184.4,0.00687395]
[1741449745551,3.8226,2184.7,2184.4,0.00687395]
[1741449746351,3.2078,2184.7,2184.4,0.00687395]
[1741449747050,5.2468,2184.7,2184.4,0.00687395]
[1741449747754,3.2078,2184.7,2184.4,0.00687395]
[1741449747945,2.68172976,2184.8,2184.4,0.00687395]
[1741449748256,2.68172976,2184.8,2184.4,0.60047395]
[1741449748556,0.64272976,2184.8,2184.4,0.60047395]
[1741449748757,0.64272976,2184.8,2184.5,0.6092]
[1741449748954,3.85052976,2184.8,2184.5,0.6092]
[1741449749855,3.85052976,2184.8,2184.4,0.00687395]
[1741449750251,3.2078,2184.5,2184.4,0.00687395]
[1741449750452,0.64272976,2184.8,2184.4,0.00687395]
[1741449750453,3.85052976,2184.8,2184.4,0.00687395]
[1741449752755,3.2078,2184.5,2184.4,0.00687395]
[1741449755962,3.2078,2184.6,2184.4,0.00687395]
[1741449756369,0.64272976,2184.8,2184.4,0.00687395]
[1741449756569,0.64272976,2184.8,2184.4,3.21467395]
[1741449757766,0.64272976,2184.8,2184.5,21.7]
[1741449758970,0.64272976,2184.8,2184.4,3.21467395]
[1741449759567,0.64272976,2184.8,2184.4,24.91467395]
[1741449759965,0.64272976,2184.8,2184.4,3.21467395]
[1741449761073,3.2078,2184.6,2184.4,0.00687395]
[1741449761272,0.64272976,2184.8,2184.4,0.00687395]
[1741449762468,3.2078,2184.5,2184.4,0.00687395]
[1741449763466,5.2458,2184.5,2183.9,0.6586]
[1741449763768,3.2078,2184.2,2183.7,4.82831666]
[1741449763960,3.2078,2184.2,2183.7,5.48691666]
[1741449764159,3.2078,2184.2,2183.7,5.1144]
[1741449764679,3.2078,2184.2,2183.7,5.12127395]
[1741449764872,3.2078,2184.2,2183.7,24.91467395]
[1741449765072,2.038,2184.1,2183.7,21.70687395]
[1741449765263,3.2078,2183.9,2183.7,21.70687395]
[1741449765575,0.6418,2183.8,2183.7,21.70687395]
[1741449765967,0.6418,2183.8,2183.7,0.00687395]
[1741449766273,0.6418,2183.8,2183.2,1.2386]
[1741449766469,3.92199138,2183.8,2183.3,21.7]
[1741449766672,3.92199138,2183.8,2183.3,24.9078]
[1741449766673,2.6798,2183.8,2183.3,24.9078]
[1741449766868,2.6798,2183.8,2183.4,0.5985]
[1741449767371,2.6798,2183.8,2183.4,0.60537395]
[1741449767576,2.038,2183.8,2183.4,0.60537395]
[1741449770071,0.6473,2184.0,2183.4,0.60537395]
[1741449770266,0.6473,2184.0,2183.6,3.2078]
[1741449770472,0.6473,2184.0,2183.7,0.6369]
[1741449770673,2.038,2184.2,2183.7,1.2842]
[1741449771071,3.2078,2184.1,2183.7,1.2842]
[1741449772079,3.2078,2184.1,2183.8,21.7]
[1741449772379,0.6436,2184.0,2183.7,1.2842]
[1741449773173,0.641,2183.9,2183.4,0.60537395]
[1741449773368,0.641,2183.9,2183.4,0.00687395]
[1741449773369,3.2078,2183.5,2183.4,0.00687395]
[1741449773575,2.038,2183.7,2183.4,0.00687395]
[1741449773769,2.04487395,2183.7,2183.4,0.00687395]
[1741449774379,3.2078,2183.5,2183.4,0.00687395]
[1741449774967,3.2078,2183.5,2183.4,21.70687395]
[1741449775368,3.2078,2183.5,2183.4,0.00687395]
[1741449781380,3.8145,2183.5,2183.4,0.00687395]
[1741449781580,0.6067,2183.5,2183.4,0.00687395]
[1741449781983,0.6515,2183.6,2183.4,0.00687395]
[1741449782284,0.00687395,2183.7,2183.4,0.00687395]
[1741449782285,2.04587395,2183.7,2183.4,0.00687395]
[1741449784685,0.07239503,2183.6,2183.4,0.00687395]
[1741449784887,0.71409503,2183.6,2183.0,4.4626]
[1741449785086,3.2078,2183.2,2183.0,1.2548]
[1741449786482,1.2471,2183.5,2183.0,1.2548]
[1741449786483,0.6061,2183.5,2183.0,1.2548]
[1741449786680,0.6061,2183.5,2183.1,0.5965]
[1741449787081,3.64201182,2183.7,2183.1,0.5965]
[1741449787382,4.30001182,2183.7,2183.1,0.5965]
[1741449787986,3.2078,2183.5,2183.1,0.5965]
[1741449789084,0.98213787,2183.6,2183.1,0.5965]
[1741449789584,3.2078,2183.4,2183.0,0.22336517]
[1741449789785,3.2078,2183.4,2183.1,0.6406]
[1741449790090,0.658,2183.3,2183.1,0.6406]
[1741449790290,1.06616791,2183.5,2183.1,0.6406]
[1741449790491,1.06616791,2183.2,2183.1,0.6406]
[1741449790690,0.41006458,2183.2,2183.1,0.6406]
[1741449792893,0.41006458,2183.2,2183.1,1.2609]
[1741449794698,1.09443635,2183.2,2183.1,0.00183049]
[1741449794996,1.09443635,2183.2,2183.0,3.43116517]
[1741449795399,1.09443635,2183.1,2183.0,3.43116517]
[1741449795994,1.09443635,2183.1,2183.0,3.2078]
[1741449796193,1.67682475,2183.1,2182.9,0.00687395]
[1741449796398,0.5823884,2183.0,2182.9,0.00687395]
[1741449796900,1.67682475,2183.0,2182.9,0.00687395]
[1741449797095,1.09443635,2183.0,2182.9,0.00687395]
[1741449802099,1.09443635,2183.0,2182.7,21.7]
[1741449802295,0.6345,2182.9,2182.7,21.7]
[1741449802801,0.6584,2182.8,2182.7,21.7]
[1741449803103,1.75283635,2182.8,2182.7,21.7]
[1741449803600,1.09443635,2182.8,2182.7,21.7]
[1741449804200,1.68227574,2182.8,2182.7,21.7]
[1741449804602,1.68227574,2182.8,2182.6,0.6149]
[1741449804797,0.58783939,2182.7,2182.6,0.6149]
[1741449804995,0.58783939,2182.7,2182.5,0.795933]
[1741449805200,0.58783939,2182.6,2182.5,0.795933]
[1741449805591,0.58783939,2182.6,2182.5,21.495933]
[1741449806001,1.96468349,2182.6,2182.5,21.495933]
[1741449806201,2.25126436,2182.6,2182.4,3.2078]
[1741449806401,0.87024495,2182.5,2182.4,3.2078]
[1741449806602,2.25126436,2182.5,2182.4,3.2078]
[1741449807004,2.25126436,2182.5,2182.4,3.57754199]
[1741449807197,0.99372866,2182.5,2182.4,23.67754199]
[1741449808105,1.00855142,2182.5,2182.4,23.67754199]
[1741449809898,1.09609989,2182.5,2182.4,24.31044199]
[1741449810106,1.69455076,2182.5,2182.4,24.31044199]
[1741449810497,1.69455076,2182.5,2182.4,23.67754199]
[1741449811900,1.09609989,2182.5,2182.4,23.67754199]
[1741449812095,1.68826731,2182.5,2182.4,23.67754199]
[1741449813001,1.002232,2182.5,2182.4,23.67754199]
[1741449813408,1.002232,2182.5,2182.4,20.46974199]
[1741449814505,1.002232,2182.5,2182.4,21.12364199]
[1741449816103,0.97700082,2182.5,2182.4,21.12364199]
[1741449816501,0.56693624,2182.5,2182.4,21.12364199]
[1741449816710,4.12280212,2183.1,2182.4,21.12364199]
[1741449818210,3.2078,2183.0,2182.4,21.12364199]
[1741449818411,5.42190212,2183.0,2182.4,21.12364199]
[1741449818610,0.98390838,2182.9,2182.4,21.12364199]
[1741449819208,0.66451315,2182.8,2182.4,21.12364199]
[1741449819411,0.6368,2182.7,2182.4,21.12364199]
[1741449819708,1.2472,2182.7,2182.4,21.12364199]
[1741449819909,0.66451315,2182.6,2182.4,21.12364199]
[1741449820109,0.66451315,2182.6,2182.4,0.6539]
[1741449820811,0.66451315,2182.5,2182.3,5.8754]
[1741449820998,0.66451315,2182.5,2182.4,19.4]
[1741449821604,0.66451315,2182.5,2182.4,19.77410853]
[1741449821802,0.6368,2182.7,2182.4,20.42710853]
[1741449822204,0.6158,2182.6,2182.4,19.77410853]
[1741449822804,0.6368,2182.7,2182.4,19.77410853]
[1741449823011,0.6368,2182.7,2182.5,0.6308]
[1741449824310,0.6368,2182.7,2182.4,19.77410853]
[1741449824914,0.68864084,2182.6,2182.4,19.77410853]
[1741449825102,0.68864084,2182.6,2182.4,0.37410853]
[1741449825307,0.68864084,2182.5,2182.3,3.2078]
[1741449825913,0.68864084,2182.4,2182.3,3.2078]
[1741449826206,0.68864084,2182.4,2182.3,21.2078]
[1741449826602,1.3083106,2182.4,2182.3,21.57931456]
[1741449827113,0.00687395,2182.6,2182.3,21.57931456]
[1741449827513,0.00687395,2182.6,2182.4,0.5103]
[1741449828213,0.62612605,2182.8,2182.4,0.5103]
[1741449828415,0.6158,2182.9,2182.6,3.2078]
[1741449829007,0.6158,2182.9,2182.6,3.8606]
[1741449831413,1.2537,2182.9,2182.6,3.8606]
[1741449833317,0.6379,2182.9,2182.6,3.8606]
[1741449834217,0.41077712,2182.8,2182.6,2.42776648]
[1741449834820,0.41077712,2182.7,2182.6,2.42776648]
[1741449835516,0.02236123,2182.7,2182.6,1.39613047]
[1741449835723,0.02236123,2182.7,2182.5,3.77009501]
[1741449836017,1.28207395,2183.0,2182.5,3.77009501]
[1741449836423,1.28207395,2183.0,2182.6,2.038]
[1741449837019,1.28207395,2183.0,2182.6,2.95459]
[1741449837218,0.00687395,2183.0,2182.7,0.91652]
[1741449837616,0.00687395,2183.0,2182.8,0.5169]
[1741449838314,0.00687395,2183.0,2182.6,3.2078]
[1741449838519,0.00687395,2183.0,2182.6,2.038]
[1741449839024,0.00687395,2183.0,2182.6,2.4724]
[1741449839418,0.00687395,2183.0,2182.6,5.6802]
[1741449839623,2.21410212,2183.1,2182.6,5.6802]
[1741449839825,2.21410212,2183.1,2182.7,3.76999501]
[1741449840128,0.98390838,2183.1,2182.7,3.76999501]
[1741449840327,3.2078,2183.2,2182.8,0.5169]
[1741449840728,3.21467395,2183.2,2182.8,0.5169]
[1741449840926,3.21467395,2183.2,2182.7,2.85348501]
[1741449841322,3.21467395,2183.2,2182.7,5.40838501]
[1741449841323,4.305911,2183.2,2182.7,5.40838501]
[1741449841627,0.98390838,2183.1,2182.7,5.40838501]
[1741449842031,1.8835,2183.0,2182.7,4.89148501]
[1741449842329,1.2396,2183.0,2182.7,4.89148501]
[1741449842527,0.64223465,2182.9,2182.7,4.89148501]
[1741449843232,0.64223465,2182.8,2182.7,4.89148501]
[1741449844328,0.4395309,2182.8,2182.7,4.89148501]
[1741449844529,0.6034,2183.0,2182.7,5.80803501]
[1741449844741,0.6034,2183.0,2182.7,6.26743501]
[1741449844938,0.6034,2183.0,2182.7,5.35088501]
[1741449845234,1.2094,2183.0,2182.7,4.89148501]
[1741449845533,1.2094,2183.0,2182.7,2.85348501]
[1741449846536,0.57095588,2182.9,2182.7,1.42080115]
[1741449846736,0.57095588,2182.8,2182.7,1.42080115]
[1741449847134,1e-08,2182.8,2182.7,1.42080115]
[1741449847441,1.2094,2183.0,2182.7,1.42080115]
[1741449847737,0.6034,2183.0,2182.7,1.42080115]
[1741449847938,0.6034,2183.0,2182.7,1.88020115]
[1741449848139,0.6034,2183.0,2182.7,1.42080115]
[1741449848437,0.6467,2182.9,2182.7,1.42080115]
[1741449850643,0.6034,2183.0,2182.7,1.42080115]
[1741449852140,0.40469779,2182.9,2182.7,1.93750115]
[1741449852342,0.40469779,2182.9,2182.7,3.89690917]
[1741449852643,0.40469779,2182.8,2182.7,4.81345917]
[1741449852844,0.6034,2183.0,2182.7,3.89690917]
[1741449853445,0.6034,2183.0,2182.7,4.81345917]
[1741449853645,0.6034,2183.0,2182.7,5.27295917]
[1741449853945,3.38054543,2183.1,2182.7,5.27295917]
[1741449854139,3.38054543,2183.1,2182.7,5.27291917]
[1741449854338,3.38054543,2183.1,2182.7,4.35640917]
[1741449855446,3.38054543,2183.1,2182.7,5.27291917]
[1741449855745,0.00687395,2183.2,2182.9,4.12425]
[1741449855946,3.2078,2183.5,2183.0,3.1969]
[1741449857042,3.21467395,2183.5,2183.0,3.1969]
[1741449858948,1.2556,2183.4,2183.0,3.1969]
[1741449859141,1.2556,2183.4,2183.0,6.1879]
[1741449859947,1.2556,2183.4,2183.0,7.10432]
[1741449860439,1.2556,2183.4,2183.1,0.91638]
[1741449860644,1.2556,2183.4,2183.1,0.5951]
[1741449860845,1.8691,2183.4,2183.1,0.5951]
[1741449861646,1.8691,2183.4,2183.0,3.5078]
[1741449861847,1.8691,2183.4,2183.1,2.037]
[1741449862046,1.8691,2183.4,2183.1,0.60445528]
[1741449862446,1.8691,2183.4,2183.0,2.16292701]
[1741449865051,1.8691,2183.4,2182.9,2.037]
[1741449865546,2.82042971,2183.4,2182.9,2.037]
[1741449865947,3.88135441,2183.4,2182.9,2.037]
[1741449867948,3.2078,2183.2,2182.7,0.38920917]
[1741449868143,3.2078,2183.2,2182.7,2.42620917]
[1741449868344,0.6055,2183.1,2182.7,2.42620917]
[1741449868545,1.2603,2183.0,2182.7,2.42620917]
[1741449869439,1.2603,2183.0,2182.7,3.02140917]
[1741449870141,0.39146561,2182.9,2182.7,3.02140917]
[1741449871047,1.2603,2183.0,2182.7,0.38920917]
[1741449871048,0.39146561,2182.8,2182.7,0.38920917]
[1741449871256,1.03586561,2182.8,2182.7,0.38920917]
[1741449871550,1.03586561,2182.8,2182.3,20.40851456]
[1741449871747,3.2078,2182.6,2182.3,18.0]
[1741449871949,0.6491,2182.5,2182.2,0.00687395]
[1741449872150,1.2935,2182.5,2182.2,0.00687395]
[1741449872451,1.2935,2182.5,2182.2,0.00065201]
[1741449872452,0.39146561,2182.4,2182.2,0.00065201]
[1741449873054,0.39146561,2182.4,2182.3,16.6]
[1741449874748,1.02486561,2182.4,2182.3,16.6]
[1741449875156,0.6334,2182.4,2182.3,16.6]
[1741449876552,1.19184483,2182.4,2182.3,16.6]
[1741449877157,1.19184483,2182.4,2182.2,1.05371208]
[1741449877158,2.25262062,2182.4,2182.2,1.05371208]
[1741449877362,0.55844483,2182.3,2182.2,1.05371208]
[1741449877853,1.7053247,2182.5,2182.2,1.05371208]
[1741449878057,0.6444,2182.5,2182.3,15.5]
[1741449882661,1.14002901,2182.8,2182.3,18.7078]
[1741449882865,1.14002901,2182.8,2182.4,0.6094]
[1741449883054,1.14002901,2182.8,2182.5,0.5965]
[1741449883255,1.14002901,2183.1,2182.6,4.12437]
[1741449883457,1.79552901,2183.1,2182.6,3.2078]
[1741449883658,1.79552901,2183.1,2182.7,15.5]
[1741449883958,0.6555,2183.1,2182.8,0.6094]
[1741449884267,1.2289,2183.4,2182.9,0.5965]
[1741449884559,0.6555,2183.3,2182.9,1.2479]
[1741449889162,0.6555,2183.3,2183.0,15.5]
[1741449889964,3.3358213,2183.4,2183.0,15.5]
[1741449891659,0.6495,2183.3,2183.0,15.5]
[1741449893159,3.3358213,2183.4,2183.0,15.5]
[1741449893763,2.22043926,2183.4,2183.0,15.5]
[1741449894162,1.6481251,2183.3,2182.9,6.4917]
[1741449894666,1.6481251,2183.3,2182.9,3.2839]
[1741449894867,2.63966436,2183.3,2182.9,3.2839]
[1741449895167,2.63966436,2183.3,2183.0,14.5]
[1741449895367,1.60893926,2183.3,2183.0,14.5]
[1741449895566,0.6174,2183.3,2183.0,14.5]
[1741449896067,3.2078,2183.2,2182.9,0.5965]
[1741449896363,4.39717805,2183.2,2182.6,7.40672701]
[1741449896568,0.99153926,2183.1,2182.7,14.5]
[1741449896769,1.2383,2183.0,2182.7,15.1211]
[1741449896968,1.8665,2183.0,2182.7,15.1211]
[1741449898364,1.8665,2183.0,2182.8,0.6516]
[1741449899775,1.8665,2183.0,2182.7,14.5]
[1741449900568,3.2078,2182.9,2182.3,0.6516]
[1741449900771,4.19933926,2182.9,2182.3,0.6516]
[1741449900972,1.03025567,2182.8,2182.4,14.5]
[1741449901173,2.02179493,2182.8,2182.4,14.5]
[1741449901475,0.6014,2182.7,2182.4,14.5]
[1741449901778,0.619,2182.6,2182.4,14.5]
[1741449902469,1.2491,2182.6,2182.4,14.5]
[1741449902670,0.619,2182.6,2182.4,14.5]
[1741449903675,0.38111726,2182.5,2182.4,14.5]
[1741449903975,0.38111726,2182.5,2182.4,13.06693565]
[1741449904178,0.38111726,2182.5,2182.2,3.76901208]
[1741449904376,0.6017,2182.4,2182.2,3.76901208]
[1741449904579,0.6017,2182.4,2182.2,3.12661208]
[1741449904782,1.1957,2182.4,2182.2,3.12661208]
[1741449905081,0.38111726,2182.3,2182.2,3.12661208]
[1741449905275,2.13500257,2182.5,2182.2,3.12661208]
[1741449905476,1.14346331,2182.5,2182.2,3.12661208]
[1741449905681,0.619,2182.6,2182.4,13.1]
[1741449906580,3.8268,2182.6,2182.2,2.48891208]
[1741449906790,1.63183926,2182.5,2182.2,0.00065201]
[1741449906975,3.2078,2182.3,2182.2,0.00065201]
[1741449907276,4.25936451,2182.3,2182.2,0.00065201]
[1741449907481,5.25090377,2182.3,2182.2,0.00065201]
[1741449909686,9.25090377,2182.3,2182.2,0.00065201]
[1741449909983,9.25090377,2182.3,2181.4,2.036]
[1741449910187,3.2078,2181.8,2181.2,1.2504]
[1741449910383,1.2688,2181.7,2181.3,11.6]
[1741449910686,3.2078,2181.5,2181.3,11.6]
[1741449911091,0.55808556,2181.4,2181.3,11.6]
[1741449912478,0.55808556,2181.4,2181.2,0.00687395]
[1741449912677,0.55691671,2181.3,2181.2,0.00687395]
[1741449914586,0.55605385,2181.3,2181.2,0.00687395]
[1741449914986,0.55605385,2181.3,2181.2,11.60687395]
[1741449915488,0.55605385,2181.3,2181.2,0.00687395]
[1741449916091,4.55605385,2181.3,2180.3,2.16292701]
[1741449916389,3.2078,2180.8,2180.2,5.2448]
[1741449916692,0.55605385,2180.7,2180.4,11.6]
[1741449916894,0.55605385,2180.6,2180.4,12.03884371]
[1741449917189,1e-08,2180.5,2180.4,16.95635371]
[1741449917490,0.38533857,2180.5,2180.4,12.95635371]
[1741449917690,3.2078,2181.1,2180.4,12.95635371]
[1741449917987,3.2078,2181.1,2180.5,3.2078]
[1741449918188,3.2078,2181.1,2180.6,2.6885]
[1741449918387,3.2078,2181.1,2180.6,3.9333]
[1741449919387,2.037,2181.3,2180.7,0.91737]
[1741449919592,3.2078,2181.7,2181.1,3.2078]
[1741449919779,3.2078,2181.7,2181.2,1.8628]
[1741449919985,3.2078,2181.7,2181.2,1.223]
[1741449920185,3.2078,2181.7,2181.1,3.2078]
[1741449920392,1.1993,2181.8,2180.9,0.618]
[1741449920393,3.2078,2181.3,2180.9,0.618]
[1741449920593,1.1993,2181.2,2180.9,0.618]
[1741449921493,0.5995,2181.2,2180.9,0.618]
[1741449921794,1.2417,2181.5,2180.9,0.618]
[1741449921997,1.2417,2181.5,2181.0,1.2516]
[1741449922395,1.2417,2181.5,2181.1,3.2078]
[1741449922601,0.5995,2181.5,2181.1,3.2078]
[1741449923491,0.5995,2181.5,2180.9,0.618]
[1741449923691,1.2449,2181.4,2180.9,0.618]
[1741449924592,4.4527,2181.4,2180.9,0.618]
[1741449927793,1.00733361,2181.3,2180.9,0.618]
[1741449928197,3.2078,2181.1,2180.5,0.6134]
[1741449928499,0.6123,2181.0,2180.5,1.2293]
[1741449928700,1.2308,2181.0,2180.5,1.2293]
[1741449928894,2.23813361,2181.0,2180.5,1.2293]
[1741449929093,0.6582,2180.9,2180.5,1.2293]
[1741449929292,0.6582,2180.9,2180.5,0.6159]
[1741449930202,0.38382496,2180.8,2180.5,0.6159]
[1741449930903,3.59162496,2180.8,2180.5,0.6159]
[1741449931197,0.38382496,2180.7,2180.4,11.6]
[1741449931399,0.6244,2180.6,2180.3,0.00687395]
[1741449931697,3.2078,2180.5,2180.3,0.00687395]
[1741449931905,0.6507,2180.4,2180.3,0.00145388]
[1741449932103,1.03452496,2180.4,2180.1,11.6]
[1741449932403,2.04185857,2180.4,2180.1,11.6]
[1741449932591,0.38382496,2180.3,2180.1,11.6]
[1741449932796,0.6016,2180.2,2180.1,11.6]
[1741449933199,7.8094,2180.2,2179.9,0.00687395]
[1741449933400,1.00733361,2180.1,2179.1,3.2078]
[1741449933704,3.2078,2179.7,2179.2,11.6]
[1741449934097,4.21513361,2179.7,2179.2,11.6]
[1741449934503,0.38382496,2179.6,2179.2,11.6]
[1741449935303,0.38382496,2179.5,2179.2,11.6]
[1741449936002,0.38382496,2179.4,2179.2,11.6]
[1741449937006,0.38382496,2179.3,2179.2,11.6]
[1741449940397,0.38382496,2179.3,2179.1,3.2078]
[1741449941001,0.38382496,2179.3,2179.2,11.6]
[1741449941207,0.5946,2179.5,2179.2,11.6]
[1741449941705,0.38350309,2179.4,2179.2,11.6]
[1741449942299,0.38350309,2179.3,2179.2,11.6]
[1741449945599,0.38350309,2179.3,2179.1,3.2078]
[1741449946110,0.38350309,2179.3,2179.2,11.6]
[1741449946600,0.38350309,2179.3,2179.1,3.2078]
[1741449947311,0.38350309,2179.2,2179.1,3.2078]
[1741449948010,0.5946,2179.5,2179.1,3.2078]
[1741449948712,0.5946,2179.5,2179.2,11.6]
[1741449950504,3.825,2179.7,2179.2,11.6]
[1741449950711,0.6172,2179.7,2179.3,0.6241]
[1741449952512,4.4503,2179.7,2179.3,0.6241]
[1741449952714,1.00687363,2179.6,2179.2,11.6]
[1741449953025,1.00687363,2179.6,2179.1,3.2078]
[1741449953210,2.77037818,2179.6,2179.1,3.2078]
[1741449953617,2.77037818,2179.6,2179.2,11.6]
[1741449954112,2.77037818,2179.6,2179.0,0.6595]
[1741449954113,3.2078,2179.4,2179.0,0.6595]
[1741449954319,0.6253,2179.3,2179.0,0.6595]
[1741449954612,0.6384,2179.2,2179.0,0.6595]
[1741449955112,2.14767818,2179.3,2179.0,3.8673]
[1741449955411,2.038,2179.4,2179.0,3.8673]
[1741449956813,2.13094405,2179.5,2179.0,3.8673]
[1741449959221,2.13094405,2179.5,2179.0,2.43208019]
[1741449960524,3.2078,2179.4,2179.1,11.6]
[1741449960713,4.21753252,2179.4,2179.1,11.6]
[1741449961118,1.12121153,2179.3,2179.1,11.6]
[1741449961320,2.13094405,2179.3,2179.1,11.6]
[1741449961818,1.12121153,2179.3,2179.1,11.6]
[1741449962214,2.13094405,2179.5,2179.1,11.6]
[1741449963320,1.00973252,2179.4,2179.1,11.6]
[1741449963533,1.00973252,2179.3,2179.1,11.6]
[1741449963727,1.00973252,2179.2,2179.1,11.6]
[1741449964128,1.00973252,2179.4,2179.1,11.6]
[1741449964329,1.00973252,2179.3,2179.1,11.6]
[1741449964528,1.00973252,2179.4,2179.2,0.6226]
[1741449964925,2.19786644,2179.3,2179.1,11.6]
[1741449965129,2.19786644,2179.3,2179.0,3.2078]
[1741449965430,1.07665491,2179.2,2179.0,1.77273068]
[1741449965832,1.07665491,2179.2,2179.0,2.69083068]
[1741449966039,1.07665491,2179.2,2179.1,11.2]
[1741449966434,1.12121153,2179.4,2179.2,0.91802]
[1741449966734,1.12121153,2179.5,2179.3,0.645]
[1741449967137,1.64813252,2179.6,2179.3,0.645]
[1741449969934,1.64813252,2179.6,2179.3,1.56297]
[1741449970135,2.06135966,2179.6,2179.3,0.645]
[1741449970340,2.06135966,2179.6,2179.3,1.56297]
[1741449970733,2.06135966,2179.6,2179.3,0.645]
[1741449971036,1.76415141,2179.6,2179.3,0.645]
[1741449971249,1.55293974,2179.6,2179.3,4.77076]
[1741449972140,0.5013126,2179.6,2179.3,4.77076]
[1741449972339,3.2078,2179.7,2179.3,4.77076]
[1741449972642,1.64861889,2179.8,2179.4,0.91793]
[1741449972843,1.64861889,2179.8,2179.3,3.8528]
[1741449973043,0.5975,2179.8,2179.3,4.77078]
[1741449973235,0.5975,2179.8,2179.3,3.8528]
[1741449975943,3.2078,2179.7,2179.3,2.41780774]
[1741449976641,4.25891889,2179.7,2179.2,1.2046]
[1741449977134,3.2078,2179.7,2179.2,1.2046]
[1741449977635,4.25891889,2179.7,2179.2,1.2046]
[1741449979642,4.25891889,2179.7,2179.1,11.2]
[1741449981148,0.96101815,2179.6,2179.1,11.2]
[1741449981348,0.6307,2179.5,2179.1,11.2]
[1741449981537,0.6027,2179.4,2179.1,11.2]
[1741449982247,0.39622385,2179.3,2179.1,11.2]
[1741449982647,0.39622385,2179.2,2179.0,3.6691]
[1741449983247,0.39622385,2179.1,2179.0,3.6691]
[1741449983750,0.39622385,2179.1,2179.0,13.4691]
[1741449984149,0.39622385,2179.1,2179.0,13.0078]
[1741449985950,0.39622385,2179.1,2179.0,11.57267537]
[1741449987150,0.00687395,2179.3,2179.0,11.57267537]
[1741449990355,1.05306066,2179.2,2179.0,10.53940533]
[1741449990856,1.05306066,2179.2,2179.0,9.8]
[1741449991154,2.01901099,2179.3,2179.0,9.8]
[1741449992652,0.9678921,2179.3,2179.0,9.8]
[1741449998265,0.37838988,2179.2,2179.0,9.8]
[1741449999156,2.10306174,2179.3,2179.0,9.8]
[1741450000863,2.10306174,2179.3,2179.0,10.71808]
[1741450001156,0.9678921,2179.3,2179.0,10.71807]
[1741450001767,0.9678921,2179.3,2179.0,9.8]
[1741450002062,4.89424003,2179.4,2179.0,10.71808]
[1741450002257,3.8105,2179.4,2179.0,9.8]
[1741450002658,3.8105,2179.4,2179.0,10.7181]
[1741450002968,3.81737395,2179.4,2179.0,10.7181]
[1741450003362,3.81737395,2179.4,2179.1,0.91806]
[1741450003558,3.81737395,2179.4,2179.0,0.91807]
[1741450003969,3.81737395,2179.4,2179.1,9.8]
[1741450004871,0.60957395,2179.4,2179.1,9.8]
[1741450007070,0.00687395,2179.4,2179.2,0.91801]
[1741450007279,1.08404804,2179.6,2179.3,1.1639]
[1741450007576,4.29184804,2179.7,2179.3,0.59201704]
[1741450008073,3.2078,2179.7,2179.4,0.91791]
[1741450008469,3.2078,2179.7,2179.3,3.66689405]
[1741450008669,3.2078,2179.7,2179.3,3.66692405]
[1741450008873,3.2078,2179.7,2179.3,2.15692701]
[1741450011075,3.2078,2179.7,2179.3,3.07489701]
[1741450011475,3.2078,2179.7,2179.4,0.91793]
[1741450011675,3.2078,2179.7,2179.4,1.37913]
[1741450012179,3.2078,2179.7,2179.4,0.4612]
[1741450013678,3.2078,2179.7,2179.3,2.15692701]
[1741450016868,3.2078,2179.7,2179.3,3.07489701]
[1741450017373,3.2078,2179.7,2179.3,2.15692701]
[1741450017575,3.2078,2179.7,2179.3,3.07489701]
[1741450018077,3.2078,2179.7,2179.3,3.07487701]
[1741450018879,1e-08,2179.8,2179.4,3.6687]
[1741450019073,1e-08,2179.8,2179.5,0.91787]
[1741450019269,1e-08,2179.8,2179.5,1.42867]
[1741450019982,3.2078,2180.3,2179.7,3.2078]